Cogmind - Beta 9.4 @@@ ROGUE MODE // 2020.01.22 @ 14:36:19 Player: jes Result: Self-destructed Performance ------------- Evolutions (1) 500 Regions Visited (2) 400 Robots Destroyed (20) 100 Value Destroyed (508) 508 Prototype IDs (2) 40 Alien Tech Used (0) 0 Bonus (0) 0 TOTAL SCORE: 1548 Bonus ------- None Cogmind --------- Core Integrity 367/400 Matter 300/300 Energy 665/665 System Corruption 0% Temperature Cool (0) Movement Walking (180) Ox2 Location -9/Materials Parts ------- > --- POWER (1) -------- Reinforced Ion Engine > --- PROPULSION (2) --- Aluminum Leg Aluminum Leg > --- UTILITY (3) ------ Heat Sink High-capacity Storage Unit High-capacity Battery > --- WEAPON (3) ------- Small Laser > --- INVENTORY (12) --- Ion Engine Ion Engine Aluminum Leg Aluminum Leg Heat Sink Mining Laser Peak State ------------ > --- POWER ------------ Reinforced Ion Engine > --- PROPULSION ------- Aluminum Leg Aluminum Leg > --- UTILITY ---------- Heat Sink High-capacity Storage Unit High-capacity Battery > --- WEAPON ----------- EM Pulse Gun Small Laser Small Laser > --- INVENTORY -------- Ion Engine Aluminum Leg Aluminum Leg Mining Laser [Rating: 10] Favorites ----------- Power Light Ion Engine Engine Light Ion Engine Propulsion Aluminum Leg Leg Aluminum Leg Utility High-capacity Battery Device Heat Sink Storage High-capacity Battery Weapon Small Laser Energy Gun Small Laser Ballistic Gun Light Assault Rifle Build | -11 -10 -9 ------- Run | Scr Mat Mat Slots Evolved 2 | . . 2 Power . | . . . Propulsion . | . . . Utility 1 | . . 1 Weapon 1 | . . 1 Parts Attached 20 | 6 7 7 Power 3 | 1 1 1 Engine 3 | 1 1 1 Core . | . . . Reactor . | . . . Propulsion 5 | 2 1 2 Treads . | . . . Leg 5 | 2 1 2 Wheel . | . . . Hover . | . . . Flight . | . . . Utility 4 | 1 2 1 Device 1 | . . 1 Storage 3 | 1 2 . Processor . | . . . Hackware . | . . . Protection . | . . . Artifact . | . . . Weapon 8 | 2 3 3 Energy Gun 7 | 2 2 3 Energy Cannon . | . . . Ballistic Gun 1 | . 1 . Ballistic Cannon . | . . . Launcher . | . . . Special Weapon . | . . . Impact Weapon . | . . . Slashing Weapon . | . . . Piercing Weapon . | . . . Special Melee Weapon . | . . . Unidentified Prototypes . | . . . Parts Lost 8 | . 2 6 Power . | . . . Propulsion 2 | . . 2 Utility . | . . . Weapon 6 | . 2 4 Highest Loss Streak 4 | . 1 4 Average Slot Usage (%) 91 | . 98 83 Engine 12 | . 14 11 Leg 24 | . 28 20 Device 4 | . . 9 Storage 24 | . 27 22 Energy Gun 23 | . 27 19 Naked Turns . | . . . Heaviest Build 51 | 10 43 51 Greatest Support 20 | 20 20 20 Greatest Overweight (x) 4 | . 2 4 Average Overweight (x) . | . . 2 Largest Inventory Capacity 12 | 6 12 12 Average Capacity 8 | 5 6 12 Most Carried 8 | 2 6 8 Average Carried 5 | 1 4 6 Final Capacity 12 | 6 12 12 Final Carried 6 | 2 6 6 Class Distribution -------------------- 77% | Mutant 15% | Scavenger-Mutant 4% | Scavenger-Gunner Dominant Class ---------------- Mutant | -10/Materials Mutant | -9/Materials Resources | -11 -10 -9 ----------- Run | Scr Mat Mat Matter Collected 377 | 228 94 55 Remotely . | . . . Salvage Created 682 | . 397 285 Parts 42 | . 28 14 Haulers Intercepted . | . . . Recyclers Shooed 2 | . 2 . Parts Field Recycled . | . . . Retrieved Matter . | . . . Parts Self-Destructed . | . . . Prevented . | . . . Kills | -11 -10 -9 ------- Run | Scr Mat Mat Combat Hostiles Destroyed 18 | . 10 8 Guns 18 | . 10 8 Classes Destroyed 4 | . 3 1 Worker 2 | . 2 . Swarmer 6 | . 3 3 Grunt 11 | . 7 4 Brawler 1 | . . 1 Best Kill Streak 5 | . 5 3 Combat Bots Only 5 | . 5 3 Max Kills in Single Turn 2 | . 2 1 Gunslinging 1 | . 1 . Exploded . | . . . Melee . | . . . Uniques/NPCs Destroyed . | . . . Combat | -11 -10 -9 -------- Run | Scr Mat Mat Damage Taken 747 | . 428 319 Core 98 | . 65 33 Absorbed by Shields . | . . . Core Remaining (%) 87 | 100 74 . Volleys Fired 60 | . 33 27 Largest 3 | . 2 3 Hottest 120 | . 80 120 Shots Fired 108 | . 61 47 Gun 108 | . 61 47 Cannon . | . . . Launcher . | . . . Special . | . . . Kinetic 2 | . 2 . Thermal 84 | . 53 31 Explosive . | . . . Electromagnetic 22 | . 6 16 Robot Hit Streak 10 | . 10 7 Robot Miss Streak 4 | . 4 3 Penetration Max . | . . . Secondary Targets 3 | . 2 1 Max Gunslinging Chain 1 | . 1 1 Shots Hit Robots 65 | . 38 27 Core Hits 34 | . 21 13 Critical Hits . | . . . Critical Kills . | . . . Critical Parts Destroyed . | . . . Melee Attacks . | . . . Impact . | . . . Slashing . | . . . Piercing . | . . . Sneak Attacks . | . . . Combat Hostiles . | . . . Follow-up Attacks . | . . . Damage Inflicted 820 | . 529 291 Guns 820 | . 529 291 Cannons . | . . . Explosions . | . . . Melee . | . . . Ramming . | . . . Kinetic . | . . . Thermal 679 | . 464 215 Explosive . | . . . Electromagnetic 141 | . 65 76 Impact . | . . . Slashing . | . . . Piercing . | . . . Highest Corruption . | . . . Average Corruption . | . . . Corruption Purged . | . . . Overload Shots . | . . . Overflow Damage . | . . . Projectiles . | . . . Explosions . | . . . Melee . | . . . Knockbacks . | . . . Impact . | . . . Kinetic . | . . . Secondary . | . . . Self-Inflicted Damage . | . . . Shots . | . . . Rammed . | . . . Targets Rammed . | . . . Kicked . | . . . Crushed . | . . . Highest Temperature 126 | . 126 115 Average Temperature 57 | . 62 45 Received Heat Transfer 255 | . 177 78 Siege Activations . | . . . Robots Corrupted . | . . . Combat Hostiles . | . . . Parts Fried . | . . . Impact Corruptions . | . . . Robots Melted . | . . . Combat Hostiles . | . . . Parts Melted 6 | . 4 2 Heat Transferred 1525 | . 1050 475 Parts Sabotaged . | . . . Parts Stolen . | . . . Parts Stripped . | . . . Power Chain Reactions . | . . . Missiles Intercepted . | . . . Alert | -11 -10 -9 ------- Run | Scr Mat Mat Peak Influence 180 | . 176 180 Average Influence 74 | . 63 103 Maximum Alert Level . | . . . Low Security (%) 100 | 100 100 100 Level 1 . | . . . Level 2 . | . . . Level 3 . | . . . Level 4 . | . . . Level 5 . | . . . High Security . | . . . Max Security . | . . . Squads Dispatched 3 | . 2 1 Investigation 1 | . 1 . Extermination . | . . . Reinforcement 2 | . 1 1 Assault . | . . . Garrison . | . . . Intercept . | . . . Construction Impeded . | . . . Haulers Reinforced . | . . . Stealth | -11 -10 -9 --------- Run | Scr Mat Mat Distress Signals 2 | . 2 . Communications Jammed . | . . . Distress Signals . | . . . Times Spotted 24 | . 14 10 Peak Tracking Total 6 | . 6 3 Tactical Retreats . | . . . Traps | -11 -10 -9 ------- Run | Scr Mat Mat Traps Triggered 2 | . 2 . Indirectly . | . . . Trap Hack Attempts . | . . . Triggered . | . . . Disarmed . | . . . Reprogrammed . | . . . Reused . | . . . Traps Extracted . | . . . Installed . | . . . Triggered . | . . . Machines | -11 -10 -9 ---------- Run | Scr Mat Mat Machines Disabled 1 | . 1 . Max in Single Turn 1 | . 1 . Machines Sabotaged . | . . . Garrisons Compromised . | . . . Overloaded Fab Kills . | . . . Fab Network Shutdowns . | . . . Hacking | -11 -10 -9 --------- Run | Scr Mat Mat Machines Accessed 8 | . 7 1 Terminals 6 | . 5 1 Fabricators . | . . . Repair Stations . | . . . Recycling Units 2 | . 2 . Scanalyzers . | . . . Garrison Access . | . . . Total Hacks 34 | . 32 2 Successful 21 | . 21 . Failed 13 | . 11 2 Catastrophic . | . . . Database Lockouts . | . . . Manual . | . . . Terminals 30 | . 28 2 Fabricators . | . . . Repair Stations . | . . . Recycling Units 4 | . 4 . Scanalyzers . | . . . Garrison Access . | . . . Terminal Hacks 18 | . 18 . Record 5 | . 5 . Prototype ID Bank 1 | . 1 . Branch Access Points 1 | . 1 . Alert Level 1 | . 1 . Unreport Threat 1 | . 1 . Locate Traps 1 | . 1 . Maintenance Status 1 | . 1 . Patrol Status 1 | . 1 . Recall Reinforcements 1 | . 1 . Hauler Manifests 2 | . 2 . Registered Components 1 | . 1 . Zone Layout 2 | . 2 . Fabricator Hacks . | . . . Repair Station Hacks . | . . . Recycling Unit Hacks 3 | . 3 . Report Inventory 1 | . 1 . Retrieve Components 2 | . 2 . Scanalyzer . | . . . Garrison Access Hacks . | . . . Unauthorized Hacks . | . . . Terminals . | . . . Fabricators . | . . . Repair Stations . | . . . Recycling Units . | . . . Scanalyzers . | . . . Garrison Access . | . . . Data Cores Recovered . | . . . Used . | . . . Hacking Detections 6 | . 5 1 Full Trace Events . | . . . Feedback Events . | . . . Feedback Blocked . | . . . Robot Schematics Acquired . | . . . Robots Built . | . . . Matter . | . . . Time . | . . . Total Robot Build Rating . | . . . Part Schematics Acquired . | . . . Parts Built . | . . . Matter . | . . . Time . | . . . Total Part Build Rating . | . . . Parts Repaired . | . . . Time . | . . . Parts Recycled . | . . . Recycled Matter . | . . . Retrieved Matter . | . . . Retrieved Components 12 | . 12 . Parts Scanalyzed . | . . . Part Schematics Acquired . | . . . Parts Damaged . | . . . Bothacking | -11 -10 -9 ------------ Run | Scr Mat Mat Used RIF Installer . | . . . Robots Hacked . | . . . Non-combat . | . . . Combat . | . . . Robot Hacks Applied . | . . . Relay Couplers Released . | . . . Robots Rewired . | . . . Allies Hacked . | . . . Hacks Repelled . | . . . Allies | -11 -10 -9 -------- Run | Scr Mat Mat Total Allies . | . . . Largest Group . | . . . Highest-Rated Group . | . . . Highest-Rated Ally . | . . . Total Orders . | . . . Ally Attacks . | . . . Total Damage . | . . . Kills . | . . . Allies Corrupted . | . . . Allies Melted . | . . . Intel | -11 -10 -9 ------- Run | Scr Mat Mat Robot Analysis Total . | . . . Derelict Logs Recovered . | . . . Drone Launches . | . . . Drone Recoveries . | . . . Exploration | -11 -10 -9 ------------- Run | Scr Mat Mat Turns Passed 1162 | 111 556 495 Spaces Moved 634 | 71 344 219 Core 4 | 4 . . Treads . | . . . Legs 630 | 67 344 219 Wheels . | . . . Hover . | . . . Flight . | . . . Fastest Speed 50 | 50 120 180 Average Speed 145 | 116 127 182 Slowest Speed 240 | 120 180 240 Overloaded Moves . | . . . Propulsion Burnouts . | . . . Robots Hopped . | . . . Cave-ins Triggered . | . . . Exploration Rate (%) 26 | 4 60 16 Regions Visited 2 Branch Regions . Pre-discovered Areas . | . . . Known Exits Taken . | . . . Unknown Exits Taken 2 | 1 1 . Scrap Searched . | . . . Spaces Dug . | . . . Terrain Destroyed . | . . . Melee . | . . . Projectile . | . . . AOE . | . . . Actions | -11 -10 -9 --------- Run | Scr Mat Mat Total 768 | 96 404 268 Wait 33 | 18 6 9 Move 632 | 70 343 219 Hop . | . . . Pick Up 14 | 2 8 4 Fast Attach 12 | 6 3 3 Attach 7 | . 3 4 Detach 3 | . 2 1 Swap 1 | . 1 . Drop 6 | . 5 1 Fire 60 | . 33 27 Melee . | . . . Ram . | . . . Kick . | . . . Crush . | . . . Escape Stasis . | . . . Rewire . | . . . Trap . | . . . Miscellaneous . | . . . Route ------- -11/Scrapyard -10/Materials (discovered 2 exits: *Mat / *Min) -9/Materials History --------- Turn | Location | Event 6 | -11/Scrapyard | Discovered new exit (range 15) 112 | -11/Scrapyard | Entered Materials 159 | -10/Materials | Identified exit to Mines 303 | -10/Materials | Build established: Mutant 588 | -10/Materials | Discovered new exit (range 16) 668 | -10/Materials | Entered another Materials area 668 | -9/Materials | Evolved 2 slots: Utility x1, Weapon x1 1011 | -9/Materials | Lost 4 parts (2n2w) 1163 | -9/Materials | Self-destructed Last Messages --------------- R-06 Scavenger collects Aluminum Leg. R-06 Scavenger collects Heat Sink. Aluminum Leg destroyed. S-10 Pest destroyed. EM Pulse Gun destroyed. S-10 Pest destroyed. Aluminum Leg destroyed. Sml. Laser destroyed. Destroyed Flight Unit. Lgt. Assault Rifle melted. Lgt. Ion Engine melted. S-10 Pest destroyed. Acquired 10 matter. Acquired Aluminum Leg. Acquired 10 matter. K-01 Serf collects debris. Connecting with Terminal... K-01 Serf collects debris. K-01 Serf cleans the Terminal. K-01 Serf collects debris. Map ----- +----------------------------------------------------+ | | | | | | | | | | | | | | | | | | | ???????????????????????????????????? | | ???????????????????????????????????? | | ???????????????????????????????????? | | ???????????????????????????????????? | | ???????????????????????????????????? | | ???????????????????????????????????? | | ???????????????????????????????????? | | ????????????????????##+#???????????? | | ????????????????????# ???????????? | | ????????????????##### ???????????? | | ????????????????? #??????????? | | ?????????????????# #####+#####? | | ?????????????????# # [#? | | ?????????????????# # ?? | | ?????????????????# #|! """ ?? | | ????????????????## #! """ #? | | ???????? ???????? #@ """ #? | | ???????# ???????????# # u #? | | ???????# ???????????# + #? | | ???????# ???????????# # #? | | ???????# #??????????# ###########? | | ???????# # ?????????# #???# #??? | | ???????# # ????????# #???# #??? | | ???????# ##+#+####### #???# #??? | | ???????# #???# #??? | | ???????# #???# #??? | | ???????+ """ """ #???# #??? | | ???????# """ """ #??## ##?? | | ######## """ """ #### #?? | | T #?? | | "" #?? | | % #?? | | ##########+######+########## %=#?? | | ???????# # ########%% ##?? | | ???????# # # """ # *%###? | | ???????# #""" # """ # * T#? | | ???????# #""" # """ + %*""#? | | ???????# #""" # # ###? | | ???????# # # /% #??? | | ???????############### #% #??? | | ???????????????????########## #??? | +----------------------------------------------------+ Best States ------------- Heat Dissipation 38 Energy Generation 12 Energy Capacity 665 Matter Stores 300 Matter Capacity 300 Sight Range 16 Terrain Scan Density 10 Evasion (%) 40 Item Schematics ----------------- None Robot Schematics ------------------ None Fabricated ------------ Nothing Alien Tech Used ----------------- None Achievements -------------- Shopping List Challenges ------------ None Game ------ Seed MachineBottomlessSink Manual? 0 Play Time 00:18:33 Cumulative 6.1 hours Start 2020.01.22 @ 13:51:25 End 2020.01.22 @ 14:36:19 Sessions 3 Manual Loads 0 Difficulty Rogue Special Mode None Game No. 6 Rogue 6 Adventurer 0 Explorer 0 Win Type - Total 0 Types 0/0/0/0/0/0/0 Lore% 1 Gallery% 9 Achievement% 8 Wizard Run 0 Options --------- ASCII 1 Keyboard 1 Movement Vi Keybinds 0 Fullscreen 0 Font 16/SmallcapsGlow Map View 76x50 Tactical HUD 0 Map Filters NONE Filters NONE Steam 1 RUN: a61e9d7d-e12f-4e40-a2d2-9abdce8dc04b